fUSD/lending_fUSD_20251105
["ID","MTS","AMOUNT","RATE_DAILY","PERIOD"]
[393227500,1762351832714,-3861.51514014,0.000176,2]
[393227502,1762351832725,-1772.42454846,0.000176,2]
[393227509,1762351838418,-500.0,0.00017599,2]
[393227510,1762351838428,-165.51991203,0.00017599,2]
[393227511,1762351838438,-229.58076439,0.00017599,2]
[393227512,1762351838448,-9371.65071288,0.000176,2]
[393227513,1762351838477,-563.17816,0.000176,2]
[393227514,1762351838489,-42033.83070109,0.000176,2]
[393227524,1762351840274,-4472.9798341,0.000176,2]
[393227525,1762351840363,-30958.40000002,0.000176,2]
[393227526,1762351840374,-1032.4,0.000176,2]
[393227527,1762351840399,-89057.94211957,0.000176,2]
[393227528,1762351840461,-1719.77433764,0.000176,2]
[393227529,1762351840473,-1600.4628,0.000176,2]
[393227530,1762351840550,-980529.63457502,0.000176,2]
[393227531,1762351840559,-1000.0,0.00017689,2]
[393227532,1762351840570,-500.0,0.00017699,2]
[393227533,1762351840581,-1198.0,0.00017699,2]
[393227534,1762351840590,-5052.6671066,0.000177,2]
[393227535,1762351840600,-1000.0,0.00017716,2]
[393227536,1762351840610,-172.04730066,0.0001772,2]
[393227537,1762351840619,-196.53063694,0.00017742,2]
[393227538,1762351840629,-221.75791629,0.00017752,2]
[393227539,1762351840639,-893.58488772,0.00017753,2]
[393227540,1762351840649,-150.0,0.00017757,2]
[393227541,1762351840658,-1342.89950275,0.00017767,2]
[393227542,1762351840668,-1000.0,0.0001777,2]
[393227543,1762351840677,-2410.44,0.00017781,2]
[393227544,1762351840687,-1205.22,0.00017781,2]
[393227545,1762351840697,-1205.22,0.00017781,2]
[393227556,1762351840912,-1205.22,0.00017781,2]
[393227558,1762351840922,-1205.22,0.00017781,2]
[393227560,1762351840932,-1205.22,0.00017781,2]
[393227562,1762351840941,-1205.22,0.00017781,2]
[393227564,1762351840952,-1205.22,0.00017781,2]
[393227566,1762351840964,-1205.22,0.00017781,2]
[393227568,1762351840974,-1425.0,0.00017788,2]
[393227570,1762351840984,-212.51,0.00017794,2]
[393227572,1762351840995,-1000.0,0.00017795,2]
[393227574,1762351841005,-1198.0,0.000178,2]
[393227576,1762351841015,-1605.0,0.000178,2]
[393227578,1762351841026,-954.06,0.000178,2]
[393227580,1762351841036,-4349.482,0.00017803,2]
[393227582,1762351841045,-243.83,0.00017803,2]
[393227583,1762351841056,-1425.0,0.00017805,2]
[393227584,1762351841065,-500.0,0.00017805,2]
[393227585,1762351841075,-1425.0,0.00017808,2]
[393227586,1762351841084,-172.04730066,0.0001781,2]
[393227587,1762351841094,-158.50786529,0.0001781,2]
[393227588,1762351841104,-150.0,0.00017819,2]
[393227589,1762351841114,-150.0,0.00017819,2]
[393227590,1762351841124,-500.0,0.00017819,2]
[393227591,1762351841133,-500.0,0.00017819,2]
[393227592,1762351841143,-150.0,0.00017819,2]
[393227593,1762351841152,-500.0,0.00017819,2]
[393227594,1762351841162,-483.0,0.00017819,2]
[393227595,1762351841172,-150.0,0.0001782,2]
[393227596,1762351841181,-1310.08018,0.0001782,2]
[393227597,1762351841190,-5888.0,0.00017832,2]
[393227598,1762351841200,-150.0,0.00017834,2]
[393227599,1762351841210,-1000.0,0.00017835,2]
[393227600,1762351841220,-1425.0,0.00017838,2]
[393227601,1762351841229,-158.50786529,0.0001784,2]
[393227602,1762351841239,-1000.0,0.00017843,2]
[393227603,1762351841249,-151.0,0.00017852,2]
[393227604,1762351841258,-500.0,0.00017855,2]
[393227605,1762351841267,-200.0,0.00017855,2]
[393227606,1762351841277,-500.0,0.00017856,2]
[393227607,1762351841286,-200.0,0.00017856,2]
[393227608,1762351841295,-200.0,0.00017856,2]
[393227609,1762351841305,-1000.0,0.0001786,2]
[393227610,1762351841314,-2500.0,0.00017865,3]
[393227611,1762351841323,-209.05525812,0.00017865,3]
[393227612,1762351841333,-150.0,0.00017865,3]
[393227613,1762351841343,-150.0,0.00017865,3]
[393227614,1762351841352,-150.0,0.00017865,3]
[393227615,1762351841361,-150.0,0.00017865,3]
[393227616,1762351841371,-150.0,0.00017865,3]
[393227617,1762351841380,-150.0,0.00017865,3]
[393227618,1762351841389,-150.0,0.00017865,3]
[393227619,1762351841398,-154.26057965,0.00017865,3]
[393227620,1762351841408,-500.0,0.00017865,2]
[393227621,1762351841417,-150.0,0.00017865,2]
[393227622,1762351841426,-150.0,0.00017865,3]
[393227623,1762351841436,-150.0,0.00017865,3]
[393227624,1762351841445,-150.0,0.00017865,2]
[393227625,1762351841454,-500.0,0.00017865,3]
[393227626,1762351841464,-150.0,0.00017865,2]
[393227627,1762351841474,-500.0,0.00017865,3]
[393227628,1762351841484,-500.0,0.00017865,3]
[393227629,1762351841494,-1425.0,0.0001787,2]
[393227630,1762351841503,-158.50786529,0.0001787,2]
[393227631,1762351841513,-2500.0,0.00017874,3]
[393227632,1762351841522,-295.33139851,0.00017875,2]
[393227633,1762351841532,-150.0,0.00017875,2]
[393227634,1762351841542,-150.0,0.00017875,2]
[393227635,1762351841552,-500.0,0.00017875,2]
[393227636,1762351841562,-150.0,0.00017875,2]
[393227637,1762351841572,-150.0,0.00017875,2]
[393227638,1762351841582,-150.0,0.00017875,2]
[393227639,1762351841592,-150.38503355,0.00017875,2]
[393227640,1762351841602,-500.0,0.00017875,2]
[393227641,1762351841612,-150.0,0.00017875,2]
[393227642,1762351841621,-821.42,0.00017875,2]
[393227643,1762351841631,-150.0,0.00017879,2]
[393227644,1762351841641,-2500.0,0.00017882,3]
[393227645,1762351841650,-1425.0,0.00017886,2]
[393227646,1762351841661,-1000.0,0.00017888,2]
[393227647,1762351841671,-741.80507092,0.00017888,2]
[393227648,1762351841681,-192.59474214,0.0001789,2]
[393227649,1762351841691,-2500.0,0.00017891,3]
[393227650,1762351841702,-607.0,0.00017896,2]
[393227651,1762351841713,-3422.0,0.00017896,2]
[393227652,1762351841723,-574.0,0.00017896,2]
[393227653,1762351841734,-1315.0,0.00017896,2]
[393227654,1762351841744,-820.0,0.00017896,2]
[393227655,1762351841754,-1595.0,0.00017896,2]
[393227656,1762351841765,-1272.0,0.00017896,2]
[393227657,1762351841774,-812.0,0.00017896,2]
[393227658,1762351841784,-905.0,0.00017896,2]
[393227659,1762351841793,-1188.0,0.00017896,2]
[393227660,1762351841803,-6664.249,0.00017896,2]
[393227661,1762351841812,-560.927,0.00017896,2]
[393227662,1762351841821,-2141.0,0.00017896,2]
[393227663,1762351841831,-6473.0,0.00017896,2]
[393227664,1762351841840,-160.0,0.000179,2]
[393227665,1762351841850,-3670.5923182,0.000179,2]
[393227666,1762351841860,-2500.0,0.000179,3]
[393227667,1762351841870,-741.80507092,0.000179,2]
[393227668,1762351841879,-5000.0,0.000179,2]
[393227669,1762351841889,-1210.0,0.000179,2]
[393227670,1762351841900,-1070.97355678,0.000179,2]
[393227671,1762351841909,-239.56426196,0.000179,2]
[393227672,1762351841919,-172.04730066,0.000179,2]
[393227673,1762351841928,-158.50786529,0.000179,2]
[393227674,1762351841938,-832.15095323,0.000179,3]
[393227675,1762351841947,-2075.69133332,0.000179,2]
[393227676,1762351841960,-428.89678196,0.000179,2]
[393227677,1762351841970,-648.41144136,0.000179,2]
[393227678,1762351841980,-5448.52839387,0.000179,2]
[393227679,1762351841989,-150.0,0.00017904,2]
[393227680,1762351842000,-5888.0,0.00017909,2]
[393227681,1762351842009,-1425.0,0.0001791,2]
[393227682,1762351842018,-1425.0,0.00017913,2]
[393227683,1762351842027,-150.0,0.00017918,2]
[393227684,1762351842040,-1000.0,0.00017919,2]
[393227685,1762351842050,-1425.0,0.0001792,2]
[393227686,1762351842059,-1000.0,0.00017926,2]
[393227687,1762351842069,-1310.08019,0.0001793,2]
[393227688,1762351842078,-1425.0,0.00017939,2]
[393227689,1762351842088,-266.00593088,0.00017942,2]
[393227690,1762351842465,-733.99406912,0.00017942,2]
[393227691,1762351842475,-1425.0,0.00017942,2]
[393227692,1762351842486,-150.0,0.00017942,2]
[393227693,1762351842496,-1000.0,0.00017945,2]
[393227694,1762351842507,-150.0,0.00017956,2]
[393227695,1762351842517,-500.0,0.00017956,2]
[393227696,1762351842527,-500.0,0.00017956,2]
[393227697,1762351842537,-155.17342814,0.00017956,2]
[393227698,1762351842546,-500.0,0.00017956,2]
[393227699,1762351842556,-483.0,0.00017956,2]
[393227700,1762351842565,-1425.0,0.00017969,2]
[393227701,1762351842575,-1000.0,0.0001797,2]
[393227702,1762351842585,-500.0,0.0001797,2]
[393227703,1762351842594,-500.0,0.0001797,2]
[393227704,1762351842604,-1000.0,0.0001797,2]
[393227705,1762351842613,-500.0,0.0001797,2]
[393227706,1762351842623,-500.0,0.0001797,2]
[393227707,1762351842632,-1000.0,0.0001797,2]
[393227708,1762351842642,-500.0,0.0001797,2]
[393227709,1762351842652,-1000.0,0.0001797,2]
[393227710,1762351842662,-500.0,0.0001797,2]
[393227711,1762351842672,-500.0,0.0001797,2]
[393227712,1762351842683,-1000.0,0.0001797,2]
[393227713,1762351842693,-1000.0,0.0001797,2]
[393227714,1762351842703,-800.63275327,0.0001797,2]
[393227715,1762351842714,-1000.0,0.0001797,2]
[393227716,1762351842724,-1000.0,0.0001797,2]
[393227717,1762351842734,-1000.0,0.0001797,2]
[393227718,1762351842745,-1000.0,0.0001797,2]
[393227719,1762351842755,-1275.49060352,0.0001797,2]
[393227720,1762351842764,-1000.0,0.00017971,2]
[393227721,1762351842773,-184.0,0.00017973,2]
[393227722,1762351842783,-546.71084981,0.00017973,2]
[393227723,1762351842793,-500.0,0.00017973,2]
[393227724,1762351842803,-500.0,0.00017973,2]
[393227725,1762351842812,-500.0,0.00017973,2]
[393227726,1762351842822,-507.55313772,0.00017973,2]
[393227727,1762351842832,-500.0,0.00017973,2]
[393227728,1762351842842,-500.0,0.00017973,2]
[393227729,1762351842851,-500.0,0.00017973,2]
[393227730,1762351842861,-500.0,0.00017973,2]
[393227731,1762351842870,-500.0,0.00017973,2]
[393227732,1762351842880,-500.86745626,0.00017973,2]
[393227733,1762351842890,-501.67217385,0.00017973,2]
[393227734,1762351842899,-500.0,0.00017973,2]
[393227735,1762351842909,-150.0,0.00017974,2]
[393227736,1762351842919,-1623.2944868,0.00017978,2]
[393227737,1762351842928,-46307.8030241,0.00017978,2]
[393227738,1762351842937,-8357.0570312,0.00017978,2]
[393227739,1762351842947,-4672.6816851,0.0001798,2]
[393227740,1762351842963,-58141.44530111,0.0001798,2]
[393227741,1762351842975,-118799.88057729,0.0001798,2]
[393227742,1762351842984,-11638.983616,0.0001798,2]
[393227743,1762351842995,-1198.0,0.00017982,2]
[393227744,1762351843004,-813.8190261,0.00017982,2]
[393227745,1762351843013,-174.5087175,0.00017989,2]
[393227746,1762351843023,-399.20805107,0.00017989,2]
[393227747,1762351843033,-1200.88762936,0.0001799,2]
[393227748,1762351843043,-1200.88762936,0.0001799,2]
[393227749,1762351843052,-151.0,0.00017994,2]
[393227750,1762351843062,-1159.7178107,0.00017995,2]
[393227751,1762351843070,-10662.8309348,0.00017995,2]
[393227752,1762351843080,-1425.0,0.00017995,2]
[393227753,1762351843089,-301.65,0.00017995,2]
[393227754,1762351843099,-300.98,0.00017995,2]
[393227755,1762351843107,-150.0,0.00017995,2]
[393227756,1762351843116,-168.75,0.00017995,2]
[393227758,1762351843125,-150.0,0.00017995,2]
[393227759,1762351843134,-150.0,0.00017995,2]
[393227760,1762351843143,-150.0,0.00017995,2]
[393227761,1762351843152,-150.0,0.00017995,2]
[393227762,1762351843162,-86346.89600784,0.00017997,2]
[393227777,1762351843470,-986.84141174,0.00017997,2]
[393227780,1762351843636,-635.6914335,0.00017997,2]
[393227781,1762351843647,-412.71119963,0.00017997,2]
[393227913,1762351846387,-1043.26781681,0.00017637,2]
[393227915,1762351846397,-1085.88182223,0.00017637,2]
[393227924,1762351846586,-998.0044028,0.00017997,2]
[393227925,1762351846601,-587.739748,0.00017637,2]
[393227926,1762351846612,-485.95661281,0.00017637,2]
[393227927,1762351846621,-86.67261708,0.00017997,2]
[393227928,1762351846632,-268.87499999,0.00017997,2]
[393227955,1762351849782,-1030.3,0.00017997,2]
[393227956,1762351849793,-3999.86253699,0.00017997,2]
[393227957,1762351972311,375.8133032,0.00016862,2]
[393227958,1762351972341,10000.01,0.00016862,2]
[393227959,1762351972368,10000.01,0.00016862,2]
[393227960,1762351972393,10000.01,0.00016862,2]
[393227961,1762351972416,10000.01,0.00016862,2]
[393227962,1762351972440,10000.01,0.00016862,2]
[393227963,1762351972463,10000.01,0.00016862,2]
[393227964,1762351972487,10000.01,0.00016862,2]
[393227965,1762351972512,10000.01,0.00016862,2]
[393227966,1762351972535,10000.01,0.00016862,2]
[393227967,1762351978955,-10000.01,0.00016862,2]
[393227968,1762351979114,-10000.01,0.00016862,2]
[393227969,1762351979251,-10000.01,0.00016862,2]
[393227970,1762351979713,-10000.01,0.00016862,2]
[393227971,1762351979743,-10000.01,0.00016862,2]
[393227972,1762351979783,-10000.01,0.00016862,2]
[393227973,1762351979934,-10000.01,0.00016862,2]
[393227974,1762351980058,-10000.01,0.00016862,2]
[393227975,1762351980186,-10000.01,0.00016862,2]
[393227976,1762351984968,-10000.01,0.00016862,2]
[393227977,1762351985108,-10000.01,0.00016862,2]
[393227978,1762351985330,-10000.01,0.00016862,2]
[393227979,1762351985468,-10000.01,0.00016862,2]
[393227980,1762351985605,-10000.01,0.00016862,2]
[393227981,1762351985711,-10000.01,0.00016862,2]
[393227982,1762351985824,-10000.01,0.00016862,2]
[393227983,1762351985939,-10000.01,0.00016862,2]
[393227984,1762351986056,-10000.01,0.00016862,2]
[393227985,1762351986185,-10000.01,0.00016862,2]
[393227986,1762351997284,-10000.01,0.00016862,2]
[393227987,1762351997410,-10000.01,0.00016862,2]
[393227988,1762351997549,-10000.01,0.00016862,2]
[393227989,1762351997677,-10000.01,0.00016862,2]
[393227990,1762351997854,-10000.01,0.00016862,2]
[393227991,1762351997974,-10000.01,0.00016862,2]
[393227992,1762351998098,-10000.01,0.00016862,2]
[393227993,1762351998205,-10000.01,0.00016862,2]
[393227994,1762351998319,-10000.01,0.00016862,2]
[393227995,1762351998434,-10000.01,0.00016862,2]
[393227996,1762352006265,-10000.01,0.00016862,2]
[393227997,1762352006388,-10000.01,0.00016862,2]
[393227998,1762352012407,-10000.01,0.00016862,2]
[393227999,1762352012522,-376.2333032,0.00016862,2]
[393228000,1762352012908,-9247.5433936,0.00016862,2]
[393228001,1762352175562,-1200.0,0.00016861,2]
[393228002,1762352175584,-300.0,0.00016861,2]
[393228003,1762352175606,-300.0,0.00016861,2]
[393228004,1762352175627,-1000.0,0.00016862,2]
[393228005,1762352175648,-2500.0,0.00016862,2]
[393228006,1762352175669,-234.2882,0.00016862,2]
[393228007,1762352175689,-500.0,0.00016862,2]
[393228008,1762352175710,-1465.7118,0.00016862,2]
[393228010,1762352281487,-165.0032782,0.00016762,2]
[393228011,1762352281518,-1.70572713,0.00016804,2]
[393228012,1762352286441,-318.52755482,0.00016804,2]
[393228013,1762352290465,-200.0,0.00016804,2]
[393228014,1762352297568,-223.6948556,0.00016804,2]
[393228015,1762352299438,-250.0,0.00016804,2]
[393228016,1762352302089,-166.66,0.00016804,2]
[393228017,1762352304049,-575.6459569,0.00016804,2]
[393228018,1762352307201,-208.06507426,0.00016804,2]
[393228019,1762352311103,-237.20277449,0.00016804,2]
[393228020,1762352313370,-203.90378393,0.00016804,2]
[393228021,1762352316165,-195.0,0.00016804,2]
[393228022,1762352317976,-365.3,0.00016804,2]
[393228023,1762352320290,-300.0,0.00016804,2]
[393228024,1762352323091,-209.07560919,0.00016804,2]
[393228025,1762352325893,-153.73396483,0.00016804,2]
[393228026,1762352342141,-166.66,0.00016804,2]
[393228027,1762352343657,-380.61074782,0.00016804,2]
[393228028,1762352345122,-390.37115033,0.00016804,2]
[393228029,1762352347621,-234.19585911,0.00016804,2]
[393228030,1762352350844,-180.86365927,0.00016762,2]
[393228031,1762352353518,-382.91066903,0.00016762,2]
[393228032,1762352356184,-314.22114819,0.00016762,2]
[393228033,1762352360148,-310.396238,0.00016762,2]
[393228034,1762352362847,-178.8903808,0.00016762,2]
[393228035,1762352365064,-211.88014745,0.00016762,2]
[393228036,1762352366813,-250.0,0.00016762,2]
[393228037,1762352368652,-245.39737671,0.00016762,2]
[393228038,1762352387054,-414.96521464,0.00016762,2]
[393228039,1762352416489,-399.33566663,0.00016762,2]
[393228040,1762352416516,-101.40178322,0.00016762,2]
[393228041,1762352422165,1000.0,0.0001639,2]
[393228042,1762352551566,-153.73396483,0.00016758,2]
[393228043,1762352551593,-54.91409184,0.00016762,2]
[393228044,1762352551618,-237.28169517,0.00016783,2]
[393228045,1762352582257,-351.0,0.00016773,2]
[393228046,1762352583802,-511.6708799,0.00016773,2]
[393228047,1762352585582,-79.24631349,0.00016773,2]
[393228048,1762352585604,-165.00327818,0.00016773,2]
[393228049,1762352585627,-32.51661926,0.00016783,2]
[393228050,1762352686505,-196.5751,0.00016762,2]
[393228051,1762352686529,-147.42489984,0.00016773,2]
[393228052,1762352694773,9161.4,0.00016177,2]
[393228053,1762352761577,-196.14,0.00016712,2]
[393228054,1762352761601,-8.89097516,0.00016773,2]
[393228055,1762352761625,-27.95927565,0.00016783,2]
[393228057,1762352813222,18006.57973005,0.000162,5]
[393228061,1762352867369,-220.54286548,0.00016773,2]
[393228062,1762352869396,10000.01,0.00015,2]
[393228063,1762352869610,10000.01,0.00015,2]
[393228064,1762352869634,10000.01,0.00015,2]
[393228065,1762352871646,-195.0,0.00015,2]
[393228066,1762352874123,-257.81219424,0.00015,2]
[393228067,1762352876904,-194.9694206,0.00015,2]
[393228068,1762352878108,-9838.62,0.00015,2]
[393228069,1762352878234,-10000.01,0.00015,2]
[393228070,1762352880076,-196.72974215,0.00015,2]
[393228071,1762352880629,-10000.01,0.00015,2]
[393228072,1762352883666,-10000.01,0.00015,2]
[393228073,1762352883831,-2099.10974729,0.00015,2]
[393228074,1762352883856,-5801.79050542,0.00015,2]
[393228076,1762352911607,-300.0,0.00014999,2]
[393228077,1762352911629,-2.67426811,0.00015807,2]
[393228078,1762352912407,55152.74259568,0.00015,3]
[393228079,1762352914239,-213.54204674,0.00015807,2]
[393228080,1762352917204,-188.7962648,0.00015807,2]
[393228081,1762352921510,-161.55758847,0.00015807,2]
[393228082,1762352924471,-418.89352201,0.00015807,2]
[393228083,1762352941801,-167.34996442,0.00015807,2]
[393228084,1762352944123,-174.31790982,0.00015807,2]
[393228085,1762352945720,-157.0578332,0.00015807,2]
[393228086,1762352945979,1959.43762471,0.00017388,4]
[393228095,1762352948386,-341.65748517,0.00015807,2]
[393228097,1762352963178,-17.86954091,0.00015807,2]
[393228098,1762352963858,-154.48978965,0.00015971,2]
[393228099,1762352966358,-40.51021035,0.00015971,2]
[393228100,1762352966382,-116.9103737,0.00016135,2]
[393228101,1762352966996,999.0,0.00016029,3]
[393228102,1762352991891,166.66,0.00015274,2]
[393228103,1762352992099,166.66,0.00015596,2]
[393228104,1762353001526,-166.66,0.00015917,2]
[393228105,1762353001548,-33.0896263,0.00016135,2]
[393228106,1762353001572,-128.00147274,0.00016239,2]
[393228126,1762353031546,-38.65852726,0.00016239,2]
[393228127,1762353031557,-200.0,0.0001634,2]
[393228128,1762353031568,-195.0,0.00016499,2]
[393228129,1762353031577,-250.0,0.00016499,2]
[393228130,1762353031587,-166.66,0.0001656,2]
[393228131,1762353031597,-300.0,0.00016772,2]
[393228132,1762353031609,-306.74254555,0.00016772,2]
[393228133,1762353031621,-893.25745445,0.00016772,2]
[393228134,1762353031631,-2451.87653563,0.00016773,2]
[393228135,1762353031641,-165.00327818,0.00016773,2]
[393228139,1762353031872,-156.315875,0.00016773,2]
[393228140,1762353031882,-935.33393999,0.00016773,2]
[393228141,1762353031891,-4564.57694159,0.00016804,2]
[393228142,1762353031901,-919.75605576,0.00016832,2]
[393228143,1762353031916,-280.24394424,0.00016832,2]
[393228144,1762353031928,-3432.25332472,0.00016833,2]
[393228145,1762353031939,-196.80678508,0.00016833,2]
[393228146,1762353031949,-479.48704755,0.00016851,2]
[393228151,1762353037464,-70.51295245,0.00016851,2]
[393228152,1762353037474,-500.0,0.00016852,2]
[393228153,1762353037484,-149.28704789,0.00016852,2]
[393228154,1762353037495,-350.71295211,0.00016852,2]
[393228155,1762353037504,-500.0,0.00016852,2]
[393228156,1762353037513,-25.53704789,0.00016852,2]
[393228164,1762353040196,-1.7e-07,0.00016852,2]
[393228165,1762353040214,-474.46295194,0.00016852,2]
[393228166,1762353040224,-500.0,0.00016852,2]
[393228167,1762353040233,-500.0,0.00016852,2]
[393228168,1762353040242,-500.0,0.00016852,2]
[393228169,1762353040251,-500.0,0.00016852,2]
[393228170,1762353040260,-500.0,0.00016852,2]
[393228171,1762353040269,-500.0,0.00016852,2]
[393228172,1762353040280,-500.0,0.00016852,2]
[393228173,1762353040289,-39366.1059484,0.00016857,2]
[393228174,1762353040298,-1275.2553355,0.00016858,2]
[393228175,1762353040307,-510.70653508,0.00016861,2]
[393228176,1762353040320,-500.0,0.00016861,2]
[393228177,1762353040330,-500.0,0.00016861,2]
[393228178,1762353040339,-397.1901281,0.00016861,2]
[393228179,1762353040348,-3449.2111659,0.00016862,2]
[393228180,1762353040359,-225.38099985,0.00016862,2]
[393228181,1762353040370,-4051.82330015,0.00016862,2]
[393228182,1762353040379,-420000.0,0.00016862,2]
[393228183,1762353040391,-500.0,0.00016873,2]
[393228184,1762353040401,-500.0,0.00016873,2]
[393228185,1762353040410,-500.0,0.00016873,2]
[393228186,1762353040419,-500.0,0.00016873,2]
[393228187,1762353040428,-160.4752958,0.00016873,2]
[393228188,1762353040437,-500.0,0.00016873,2]
[393228189,1762353040446,-500.0,0.00016873,2]
[393228190,1762353040455,-500.0,0.00016873,2]
[393228191,1762353040464,-500.0,0.00016873,2]
[393228192,1762353040473,-500.0,0.00016873,2]
[393228193,1762353040483,-500.0,0.00016873,2]
[393228194,1762353040492,-605.78717603,0.00016873,2]
[393228195,1762353040502,-500.0,0.00016873,2]
[393228196,1762353040512,-500.0,0.00016873,2]
[393228197,1762353040521,-500.0,0.00016873,2]
[393228198,1762353040533,-500.0,0.00016873,2]
[393228199,1762353040543,-500.0,0.00016873,2]
[393228200,1762353040552,-500.0,0.00016873,2]
[393228201,1762353040562,-166.66,0.00016882,2]
[393228202,1762353040572,-2672.41940102,0.00016898,2]
[393228203,1762353040582,-935.33393993,0.00016898,2]
[393228204,1762353040591,-165.00327818,0.00016998,2]
[393228205,1762353040600,-2672.41940102,0.00017023,2]
[393228206,1762353040610,-935.33393993,0.00017023,2]
[393228207,1762353040619,-477.03,0.00017041,2]
[393228208,1762353040628,-477.03,0.00017041,2]
[393228209,1762353040638,-477.03,0.00017041,2]
[393228210,1762353040647,-156.315875,0.00017055,2]
[393228211,1762353040656,-84304.6473514,0.0001712,2]
[393228212,1762353040665,-2672.41940102,0.00017149,2]
[393228213,1762353040675,-935.33393993,0.00017149,2]
[393228214,1762353040684,-150.0,0.00017177,2]
[393228215,1762353040694,-415.63,0.00017178,2]
[393228216,1762353040703,-150.0,0.00017178,2]
[393228217,1762353040713,-165.00327818,0.00017224,2]
[393228218,1762353040722,-2672.41940102,0.00017274,2]
[393228219,1762353040731,-935.33393993,0.00017274,2]
[393228220,1762353040740,-477.03,0.000173,2]
[393228221,1762353040749,-150.0,0.000173,2]
[393228222,1762353040758,-477.03,0.000173,2]
[393228223,1762353040767,-156.315875,0.00017337,2]
[393228224,1762353040780,-300.0,0.00017388,2]
[393228225,1762353040789,-195.0,0.00017388,2]
[393228226,1762353040798,-250.0,0.00017388,2]
[393228227,1762353040807,-2672.41940102,0.00017399,2]
[393228228,1762353040817,-935.33393993,0.00017399,2]
[393228229,1762353040826,-948.32,0.000174,2]
[393228230,1762353040835,-477.03,0.000174,2]
[393228231,1762353040844,-150.0,0.000174,2]
[393228232,1762353040854,-150.0,0.000174,2]
[393228233,1762353040863,-5888.0,0.00017405,2]
[393228234,1762353040872,-1892.0,0.0001741,2]
[393228235,1762353040881,-1892.0,0.0001742,2]
[393228236,1762353040890,-1000.0,0.00017421,2]
[393228237,1762353040899,-1000.0,0.00017421,2]
[393228238,1762353040909,-1000.0,0.00017421,2]
[393228239,1762353040919,-1000.0,0.00017421,2]
[393228240,1762353040929,-515.24868806,0.00017421,2]
[393228241,1762353040939,-1000.0,0.00017421,2]
[393228242,1762353040948,-195.78612981,0.00017421,2]
[393228243,1762353040958,-500.0,0.00017421,2]
[393228244,1762353040968,-1000.0,0.00017421,2]
[393228245,1762353040978,-1000.0,0.00017421,2]
[393228246,1762353040987,-500.0,0.00017425,2]
[393228247,1762353041224,-500.0,0.00017425,2]
[393228248,1762353041235,-165.00327818,0.00017449,2]
[393228249,1762353041245,-300.0,0.00017453,2]
[393228250,1762353041255,-477.03,0.000175,2]
[393228251,1762353041266,-477.03,0.000175,2]
[393228252,1762353041275,-477.03,0.000175,2]
[393228253,1762353041290,-2672.41940102,0.00017524,2]
[393228254,1762353041301,-935.33393993,0.00017524,2]
[393228255,1762353041311,-500.0,0.00017539,2]
[393228256,1762353041325,-2500.0,0.00017574,3]
[393228257,1762353041335,-2500.0,0.00017583,3]
[393228258,1762353041344,-2500.0,0.00017592,3]
[393228259,1762353041354,-1300079.06142522,0.000176,2]
[393228260,1762353041364,-2500.0,0.00017601,3]
[393228261,1762353041374,-2500.0,0.0001761,3]
[393228262,1762353041384,-156.315875,0.00017618,2]
[393228263,1762353041396,-2500.0,0.00017618,3]
[393228264,1762353041406,-2500.0,0.00017627,3]
[393228265,1762353041419,-1000.0,0.00017635,2]
[393228266,1762353041430,-2500.0,0.00017636,3]
[393228267,1762353041440,-1117.97019944,0.00017637,2]
[393228268,1762353041450,-1056.77765456,0.00017637,2]
[393228269,1762353041460,-1042.0499919,0.00017637,2]